[Event "Open Cappelle-la-Grande"]
[Date "2026.02.22"]
[White "Riff, Jean-Noel"]
[Black "Eugene, Floryan"]
[WhiteElo "2399"]
[BlackElo "2478"]
[Round "3.3.5"]
[Result "0-1"]
[TimeControl "40/5400+30:1800+30"]

e4 {[%clk 0:41:01]} e6 {[%clk 1:30:55]} d4 {[%clk 0:41:26]} d5 {[%clk 1:31:22]}
Nc3 {[%clk 0:41:53]} Bb4 {[%clk 1:31:47]} Ne2 {[%clk 0:41:14]} Nf6 {[%clk
1:31:50]} e5 {[%clk 0:41:34]} Nfd7 {[%clk 1:32:15]} a3 {[%clk 0:41:00]} Be7
{[%clk 1:32:38]} f4 {[%clk 0:41:21]} O-O {[%clk 1:30:12]} g3 {[%clk 0:37:14]} c5
{[%clk 1:29:35]} Be3 {[%clk 0:37:37]} b6 {[%clk 1:26:31]} Bh3 {[%clk 0:35:01]}
Nc6 {[%clk 1:26:02]} O-O {[%clk 0:35:01]} Ba6 {[%clk 1:22:47]} Rf2 {[%clk
0:34:04]} g6 {[%clk 1:07:51]} b4 {[%clk 0:27:19]} cxb4 {[%clk 0:59:50]} axb4
{[%clk 0:27:37]} Nxb4 {[%clk 1:00:11]} g4 {[%clk 0:27:49]} Rc8 {[%clk 0:52:41]}
Bd2 {[%clk 0:23:26]} f6 {[%clk 0:39:12]} exf6 {[%clk 0:18:26]} Bxf6 {[%clk
0:38:59]} g5 {[%clk 0:18:52]} Bg7 {[%clk 0:39:24]} Bxe6+ {[%clk 0:19:07]} Kh8
{[%clk 0:39:51]} Nxd5 {[%clk 0:17:30]} Bxe2 {[%clk 0:30:41]} Rxe2 {[%clk
0:17:58]} Nxd5 {[%clk 0:29:17]} Bxd5 {[%clk 0:18:23]} Nc5 {[%clk 0:28:11]} c4
{[%clk 0:18:34]} Nd3 {[%clk 0:26:21]} Re4 {[%clk 0:16:25]} b5 {[%clk 0:24:39]}
Ba5 {[%clk 0:15:22]} Qd7 {[%clk 0:22:42]} Qxd3 {[%clk 0:13:44]} bxc4 {[%clk
0:23:07]} Bxc4 {[%clk 0:14:08]} Qg4+ {[%clk 0:16:57]} Qg3 {[%clk 0:13:33]} Qxg3+
{[%clk 0:17:21]} hxg3 {[%clk 0:14:01]} Rxc4 {[%clk 0:17:45]} Rd1 {[%clk
0:14:25]} Kg8 {[%clk 0:16:28]} Kg2 {[%clk 0:13:09]} Rb8 {[%clk 0:15:31]} Kf3
{[%clk 0:11:04]} Rb3+ {[%clk 0:15:46]} Re3 {[%clk 0:11:30]} Rb5 {[%clk 0:16:03]}
d5 {[%clk 0:11:54]} Rxa5 {[%clk 0:12:49]} d6 {[%clk 0:10:47]} Rd4 {[%clk
0:13:07]} Re8+ {[%clk 0:07:17]} Kf7 {[%clk 0:13:32]} Re7+ {[%clk 0:07:45]} Kf8
{[%clk 0:13:57]} Rde1 {[%clk 0:08:14]} Kg8 {[%clk 0:14:19]} Re8+ {[%clk
0:06:09]} Bf8 {[%clk 0:14:43]} R1e6 {[%clk 0:06:38]} Rf5 {[%clk 0:11:28]} Ra8
{[%clk 0:06:20]} Rf7 {[%clk 0:10:12]} Rae8 {[%clk 0:06:43]} Kg7 {[%clk 0:10:05]}
Rd8 {[%clk 0:06:45]} a5 {[%clk 0:09:57]} Ra8 {[%clk 0:07:12]} Bxd6 {[%clk
0:26:57]} Rxa5 {[%clk 0:35:38]} Bc7 {[%clk 0:22:24]} Ra3 {[%clk 0:34:34]} Rd1
{[%clk 0:21:10]} Rae3 {[%clk 0:34:44]} Rf1+ {[%clk 0:19:51]} Kg2 {[%clk
0:35:04]} Rc1 {[%clk 0:20:12]} Re7 {[%clk 0:35:27]} Ba5 {[%clk 0:20:02]} Rxf7+
{[%clk 0:35:28]} Kxf7 {[%clk 0:20:30]} Rd3 {[%clk 0:34:47]} Rc7 {[%clk 0:18:19]}
Kh3 {[%clk 0:34:19]} Be1 {[%clk 0:18:28]} Re3 {[%clk 0:34:36]} Bf2 {[%clk
0:18:11]} Re2 {[%clk 0:35:00]} Bd4 {[%clk 0:18:34]} Re4 {[%clk 0:35:01]} Ba7
{[%clk 0:18:17]} Kg4 {[%clk 0:35:04]} Re7 {[%clk 0:18:39]} Ra4 {[%clk 0:35:12]}
Ke6 {[%clk 0:19:03]} Ra6+ {[%clk 0:30:43]} Kd5 {[%clk 0:19:14]} Ra5+ {[%clk
0:29:58]} Bc5 {[%clk 0:18:33]} Ra8 {[%clk 0:30:22]} Ke4 {[%clk 0:16:54]} Rc8
{[%clk 0:26:18]} Bd4 {[%clk 0:16:58]} Rc1 {[%clk 0:25:58]} Bf2 {[%clk 0:14:08]}
Rc6 {[%clk 0:12:22]} Be1 {[%clk 0:08:25]} Rf6 {[%clk 0:12:04]} Bc3 {[%clk
0:06:32]} Rf8 {[%clk 0:11:45]} Bg7 {[%clk 0:05:52]} Ra8 {[%clk 0:12:09]} Kd3
{[%clk 0:05:25]} Kf3 {[%clk 0:09:53]} Bd4 {[%clk 0:04:54]} Ra3+ {[%clk 0:09:41]}
Bc3 {[%clk 0:05:14]} Kf2 {[%clk 0:07:01]} Re2+ {[%clk 0:03:32]} Kf3 {[%clk
0:07:25]} Re3+ {[%clk 0:03:54]} Kf2 {[%clk 0:07:53]} Ke4 {[%clk 0:04:08]} Ra4+
{[%clk 0:07:54]} Bd4 {[%clk 0:04:33]} Kg2 {[%clk 0:08:19]} Rd3 {[%clk 0:04:46]}
Ra2 {[%clk 0:07:44]} Ke3 {[%clk 0:04:57]} Kh3 {[%clk 0:07:44]} Kf3 {[%clk
0:05:16]} Ra5 {[%clk 0:06:48]} Rd1 {[%clk 0:05:22]} Kh2 {[%clk 0:07:15]} Kg4
{[%clk 0:04:30]}

[Variant "Standard"]
[Site "Europe Echecs"]

[Event "Open Cappelle-la-Grande"]
[Date "2026.02.22"]
[White "Zamengo, Fulvio"]
[Black "Ruzhansky, Elias"]
[WhiteElo "2375"]
[BlackElo "2462"]
[Round "3.3.6"]
[Result "1-0"]
[TimeControl "40/5400+30:1800+30"]

e4 {[%clk 1:28:50]} d6 {[%clk 1:30:36]} d4 {[%clk 1:29:07]} g6 {[%clk 1:30:53]}
Nc3 {[%clk 1:28:49]} Bg7 {[%clk 1:30:55]} Be3 {[%clk 1:29:03]} a6 {[%clk
1:31:06]} Qd2 {[%clk 1:28:03]} b5 {[%clk 1:30:59]} Bd3 {[%clk 1:17:01]} Nd7
{[%clk 1:16:30]} Nf3 {[%clk 1:14:50]} Bb7 {[%clk 1:13:54]} a4 {[%clk 1:06:37]}
b4 {[%clk 1:12:23]} Ne2 {[%clk 1:06:58]} a5 {[%clk 1:03:51]} O-O {[%clk
1:01:33]} Ngf6 {[%clk 0:47:25]} e5 {[%clk 0:30:10]} Ng4 {[%clk 0:44:46]} e6
{[%clk 0:30:30]} fxe6 {[%clk 0:44:26]} Ng5 {[%clk 0:29:48]} Nf8 {[%clk 0:43:36]}
Nf4 {[%clk 0:28:15]} Qd7 {[%clk 0:41:16]} Bc4 {[%clk 0:17:30]} d5 {[%clk
0:39:02]} Be2 {[%clk 0:17:55]} Nh6 {[%clk 0:29:26]} Nd3 {[%clk 0:15:12]} Nf5
{[%clk 0:26:54]} c3 {[%clk 0:12:03]} e5 {[%clk 0:19:33]} Nc5 {[%clk 0:09:35]}
Qc8 {[%clk 0:19:34]} dxe5 {[%clk 0:09:59]} h6 {[%clk 0:18:54]} Nf3 {[%clk
0:06:59]} Ne6 {[%clk 0:16:36]} cxb4 {[%clk 0:06:03]} Nxc5 {[%clk 0:11:58]} Bxc5
{[%clk 0:05:41]} axb4 {[%clk 0:12:15]} Qxb4 {[%clk 0:06:06]} Ba6 {[%clk
0:10:58]} Bxa6 {[%clk 0:05:15]} Qxa6 {[%clk 0:10:09]} g4 {[%clk 0:05:35]} O-O
{[%clk 0:05:43]} gxf5 {[%clk 0:04:48]} Rxf5 {[%clk 0:06:06]} Ra3 {[%clk
0:05:12]} Raf8 {[%clk 0:06:14]} Nd4 {[%clk 0:00:35]} Rf4 {[%clk 0:03:56]} Qb5
{[%clk 0:00:34]} Qc8 {[%clk 0:04:02]} Nc6 {[%clk 0:00:58]} Kh7 {[%clk 0:02:39]}
Bxe7 {[%clk 0:01:18]} R8f5 {[%clk 0:02:27]} Qxd5 {[%clk 0:01:36]} Rh5 {[%clk
0:02:16]} a5 {[%clk 0:01:00]} Qa6 {[%clk 0:01:44]} b4 {[%clk 0:00:46]} Qe2
{[%clk 0:01:27]} Bf6 {[%clk 0:00:35]} Rxf6 {[%clk 0:01:07]} a6 {[%clk 0:00:01]}
Qg4+ {[%clk 0:00:33]} Rg3 {[%clk 0:00:51]} Qh4 {[%clk 0:00:47]} h3 {[%clk
0:01:17]} Rff5 {[%clk 0:00:44]} a7 {[%clk 0:01:31]} Rfg5 {[%clk 0:00:32]} Qg2
{[%clk 0:27:19]} Bxe5 {[%clk 0:28:08]} Nxe5 {[%clk 0:27:16]} Rxg3 {[%clk
0:27:57]} fxg3 {[%clk 0:27:22]} Qd4+ {[%clk 0:28:17]} Qf2 {[%clk 0:27:44]}

[Variant "Standard"]
[Site "Europe Echecs"]

[Event "Open Cappelle-la-Grande"]
[Date "2026.02.22"]
[White "Lamaze, Simon"]
[Black "Zylka, Stanislaw"]
[WhiteElo "2450"]
[BlackElo "2347"]
[Round "3.3.7"]
[Result "1-0"]
[TimeControl "40/5400+30:1800+30"]

e4 {[%clk 1:29:45]} c5 {[%clk 1:27:25]} Nf3 {[%clk 1:30:06]} e6 {[%clk 1:26:59]}
d4 {[%clk 1:30:24]} cxd4 {[%clk 1:27:08]} Nxd4 {[%clk 1:30:50]} a6 {[%clk
1:27:29]} Qf3 {[%clk 1:31:02]} Qb6 {[%clk 1:27:51]} Nb3 {[%clk 1:30:47]} Qc7
{[%clk 1:28:14]} Nc3 {[%clk 1:28:12]} d6 {[%clk 1:17:45]} Bf4 {[%clk 1:23:09]}
Nd7 {[%clk 1:13:16]} a4 {[%clk 1:19:52]} Ne5 {[%clk 1:12:07]} Qg3 {[%clk
1:17:48]} h5 {[%clk 1:10:17]} f3 {[%clk 1:09:11]} Bd7 {[%clk 1:06:57]} Be2
{[%clk 1:04:09]} h4 {[%clk 1:03:26]} Qf2 {[%clk 1:04:17]} h3 {[%clk 1:03:32]} g4
{[%clk 1:00:58]} Rc8 {[%clk 1:02:45]} a5 {[%clk 0:48:47]} Be7 {[%clk 1:01:56]}
g5 {[%clk 0:45:56]} Nc4 {[%clk 0:50:51]} Bxc4 {[%clk 0:45:11]} Qxc4 {[%clk
0:50:32]} O-O-O {[%clk 0:45:13]} e5 {[%clk 0:48:58]} Be3 {[%clk 0:44:26]} Be6
{[%clk 0:48:24]} Kb1 {[%clk 0:42:32]} f5 {[%clk 0:37:26]} f4 {[%clk 0:40:25]} g6
{[%clk 0:33:27]} Qg3 {[%clk 0:35:27]} Qb4 {[%clk 0:29:19]} Bc1 {[%clk 0:27:38]}
Rh5 {[%clk 0:19:05]} fxe5 {[%clk 0:23:56]} f4 {[%clk 0:18:37]} Bxf4 {[%clk
0:21:39]} dxe5 {[%clk 0:12:53]} Bd2 {[%clk 0:21:54]} Bxb3 {[%clk 0:06:15]} cxb3
{[%clk 0:21:49]} Qxb3 {[%clk 0:06:38]} Rhf1 {[%clk 0:17:16]} Bb4 {[%clk
0:01:01]} Qxe5+ {[%clk 0:16:17]} Ne7 {[%clk 0:01:26]} Qf6 {[%clk 0:16:44]}

[Variant "Standard"]
[Site "Europe Echecs"]

[Event "Open Cappelle-la-Grande"]
[Date "2026.02.22"]
[White "Levin, Guy"]
[Black "Adrian, Leopold"]
[WhiteElo "2440"]
[BlackElo "2246"]
[Round "3.3.8"]
[Result "1-0"]
[TimeControl "40/5400+30:1800+30"]

d4 {[%clk 1:30:50]} d5 {[%clk 1:28:40]} Nf3 {[%clk 1:31:14]} c5 {[%clk 1:28:06]}
e3 {[%clk 1:29:46]} Nf6 {[%clk 1:27:54]} Be2 {[%clk 1:29:41]} Nc6 {[%clk
1:27:13]} O-O {[%clk 1:29:47]} Bg4 {[%clk 1:25:16]} dxc5 {[%clk 1:30:10]} e6
{[%clk 1:24:02]} a3 {[%clk 1:24:56]} Bxc5 {[%clk 1:17:42]} b4 {[%clk 1:25:19]}
Bd6 {[%clk 1:17:15]} Bb2 {[%clk 1:25:42]} O-O {[%clk 1:15:50]} Nbd2 {[%clk
1:24:28]} Qe7 {[%clk 1:06:21]} c4 {[%clk 1:24:44]} Rfd8 {[%clk 1:06:25]} Rc1
{[%clk 1:15:14]} dxc4 {[%clk 0:49:11]} Rxc4 {[%clk 1:13:42]} Bxf3 {[%clk
0:38:54]} Bxf3 {[%clk 1:13:28]} Bxh2+ {[%clk 0:38:22]} Kxh2 {[%clk 1:13:45]}
Qd6+ {[%clk 0:38:43]} Kg1 {[%clk 1:12:42]} Qxd2 {[%clk 0:39:07]} Qa1 {[%clk
1:13:02]} Qd6 {[%clk 0:33:17]} Bxc6 {[%clk 1:09:40]} bxc6 {[%clk 0:33:35]} Bxf6
{[%clk 1:10:07]} gxf6 {[%clk 0:33:59]} Qxf6 {[%clk 1:09:32]} e5 {[%clk 0:33:49]}
Rg4+ {[%clk 1:08:10]} Kf8 {[%clk 0:34:13]} Qg7+ {[%clk 1:08:36]} Ke7 {[%clk
0:33:16]} Re4 {[%clk 1:08:52]} Rf8 {[%clk 0:33:44]} Rxe5+ {[%clk 1:08:39]} Kd7
{[%clk 0:34:11]} Re4 {[%clk 1:08:31]} Kc7 {[%clk 0:34:24]} Rc1 {[%clk 1:02:26]}
Kb7 {[%clk 0:34:12]} Qxh7 {[%clk 0:59:30]} Rac8 {[%clk 0:33:57]} Rd4 {[%clk
0:59:11]} Qe6 {[%clk 0:27:54]} Qe4 {[%clk 0:56:47]} Qxe4 {[%clk 0:28:18]} Rxe4
{[%clk 0:57:11]} Rc7 {[%clk 0:28:45]} Rc5 {[%clk 0:56:57]} Rd8 {[%clk 0:28:53]}
Rec4 {[%clk 0:53:16]} Rd1+ {[%clk 0:28:18]} Kh2 {[%clk 0:53:45]} Ra1 {[%clk
0:28:41]} Rc3 {[%clk 0:52:38]} a6 {[%clk 0:28:40]} g4 {[%clk 0:52:45]} f6 {[%clk
0:28:38]} Kg3 {[%clk 0:53:08]} Ra2 {[%clk 0:29:01]} f3 {[%clk 0:53:31]}

[Variant "Standard"]
[Site "Europe Echecs"]

[Event "Open Cappelle-la-Grande"]
[Date "2026.02.22"]
[White "Moksh Amit Doshi"]
[Black "Carnicelli, Valerio"]
[WhiteElo "2354"]
[BlackElo "2438"]
[Round "3.3.9"]
[Result "1-0"]
[TimeControl "40/5400+30:1800+30"]

e4 {[%clk 1:24:39]} c5 {[%clk 1:30:48]} Nf3 {[%clk 1:24:54]} Nc6 {[%clk
1:31:06]} Bb5 {[%clk 1:25:12]} e6 {[%clk 1:31:31]} O-O {[%clk 1:25:23]} Nge7
{[%clk 1:31:57]} Re1 {[%clk 1:25:45]} a6 {[%clk 1:32:18]} Bf1 {[%clk 1:26:09]}
d5 {[%clk 1:32:42]} exd5 {[%clk 1:26:18]} Nxd5 {[%clk 1:33:07]} d4 {[%clk
1:26:39]} cxd4 {[%clk 1:33:33]} Nxd4 {[%clk 1:26:17]} Ndb4 {[%clk 1:33:59]} Nxc6
{[%clk 1:14:54]} Qxd1 {[%clk 1:34:25]} Rxd1 {[%clk 1:15:19]} bxc6 {[%clk
1:34:52]} Na3 {[%clk 1:12:00]} a5 {[%clk 1:35:14]} c3 {[%clk 1:08:58]} Nd5
{[%clk 1:35:38]} Nc4 {[%clk 1:08:28]} f6 {[%clk 1:32:19]} g3 {[%clk 0:59:12]}
Bc5 {[%clk 1:20:17]} Bg2 {[%clk 0:57:55]} Ke7 {[%clk 1:14:33]} Bd2 {[%clk
0:53:42]} Rd8 {[%clk 1:03:30]} a4 {[%clk 0:48:09]} e5 {[%clk 0:56:29]} Be1
{[%clk 0:37:25]} Bf5 {[%clk 0:41:55]} Nxa5 {[%clk 0:32:14]} Rxa5 {[%clk
0:42:21]} b4 {[%clk 0:32:33]} Ra7 {[%clk 0:41:11]} bxc5 {[%clk 0:32:20]} Bc2
{[%clk 0:41:06]} Rdc1 {[%clk 0:31:29]} Rxa4 {[%clk 0:40:38]} Rxa4 {[%clk
0:29:09]} Bxa4 {[%clk 0:41:06]} c4 {[%clk 0:29:22]} Nc7 {[%clk 0:41:17]} Ba5
{[%clk 0:29:35]} Ne6 {[%clk 0:30:13]} Bxd8+ {[%clk 0:24:34]} Kxd8 {[%clk
0:30:41]} Be4 {[%clk 0:21:49]} g6 {[%clk 0:27:53]} f3 {[%clk 0:17:44]} Kc7
{[%clk 0:24:23]} h4 {[%clk 0:14:48]} f5 {[%clk 0:18:36]} Bb1 {[%clk 0:12:08]}
Nxc5 {[%clk 0:16:19]} g4 {[%clk 0:11:36]} Nb3 {[%clk 0:06:50]} Re1 {[%clk
0:08:18]} Nd2 {[%clk 0:06:38]} Kf2 {[%clk 0:08:08]} fxg4 {[%clk 0:05:01]} fxg4
{[%clk 0:08:31]} Nxc4 {[%clk 0:03:18]} h5 {[%clk 0:06:01]} gxh5 {[%clk 0:03:05]}
gxh5 {[%clk 0:06:26]} h6 {[%clk 0:02:58]} Rg1 {[%clk 0:06:52]} Nd2 {[%clk
0:02:02]} Bf5 {[%clk 0:07:07]} c5 {[%clk 0:01:09]} Rg7+ {[%clk 0:05:42]} Kd6
{[%clk 0:00:32]} Rg6+ {[%clk 0:06:06]} Kd5 {[%clk 0:25:44]} Rxh6 {[%clk
0:34:44]} c4 {[%clk 0:26:09]} Ra6 {[%clk 0:34:55]}

[Variant "Standard"]
[Site "Europe Echecs"]

[Event "Open Cappelle-la-Grande"]
[Date "2026.02.22"]
[White "Poetsch, Hagen"]
[Black "Luong Phuong Hanh"]
[WhiteElo "2433"]
[BlackElo "2236"]
[Round "3.3.10"]
[Result "1-0"]
[TimeControl "40/5400+30:1800+30"]

e4 {[%clk 1:28:29]} c5 {[%clk 1:30:43]} Nf3 {[%clk 1:28:55]} d6 {[%clk 1:31:03]}
d4 {[%clk 1:29:21]} cxd4 {[%clk 1:31:28]} Nxd4 {[%clk 1:29:45]} Nf6 {[%clk
1:31:48]} Nc3 {[%clk 1:30:12]} a6 {[%clk 1:32:08]} Qd3 {[%clk 1:28:08]} e5
{[%clk 1:31:36]} Nf5 {[%clk 1:28:27]} Bxf5 {[%clk 1:31:04]} exf5 {[%clk
1:28:51]} Be7 {[%clk 1:27:14]} Bg5 {[%clk 1:17:11]} Nbd7 {[%clk 1:27:18]} O-O-O
{[%clk 1:17:24]} Rc8 {[%clk 1:26:00]} Be2 {[%clk 1:11:14]} Qa5 {[%clk 1:16:55]}
Bxf6 {[%clk 1:03:10]} Nxf6 {[%clk 1:17:16]} Bf3 {[%clk 1:03:19]} O-O {[%clk
1:15:32]} Kb1 {[%clk 0:59:24]} Rc5 {[%clk 1:13:53]} a3 {[%clk 0:51:16]} Qc7
{[%clk 1:02:53]} g4 {[%clk 0:48:45]} Rc8 {[%clk 0:59:06]} g5 {[%clk 0:48:59]} e4
{[%clk 0:58:57]} Nxe4 {[%clk 0:41:20]} Nxe4 {[%clk 0:59:16]} Bxe4 {[%clk
0:41:40]} d5 {[%clk 0:59:09]} Bxd5 {[%clk 0:40:57]} Bxg5 {[%clk 0:55:00]} Bb3
{[%clk 0:35:23]} Bf6 {[%clk 0:55:01]} Rhe1 {[%clk 0:34:34]} h6 {[%clk 0:55:14]}
Qd7 {[%clk 0:34:09]} Qxd7 {[%clk 0:46:11]} Rxd7 {[%clk 0:34:32]} Rxf5 {[%clk
0:46:23]} Rxf7 {[%clk 0:32:34]} Kh8 {[%clk 0:46:36]} Be6 {[%clk 0:29:01]} Re8
{[%clk 0:47:00]} Bxf5 {[%clk 0:29:24]} Rxe1+ {[%clk 0:47:27]} Ka2 {[%clk
0:29:48]} Be7 {[%clk 0:47:21]} Bc8 {[%clk 0:27:04]} Kg8 {[%clk 0:45:05]} Rf3
{[%clk 0:27:28]} Re2 {[%clk 0:44:52]} Kb3 {[%clk 0:18:04]} Re5 {[%clk 0:45:11]}
a4 {[%clk 0:17:15]} Re4 {[%clk 0:40:51]} c3 {[%clk 0:17:02]} b5 {[%clk 0:40:53]}
a5 {[%clk 0:04:44]} Ra4 {[%clk 0:37:52]} Bxa6 {[%clk 0:03:38]} Rxa5 {[%clk
0:38:15]} Bc8 {[%clk 0:03:47]} Ra8 {[%clk 0:37:31]} Be6+ {[%clk 0:03:42]} Kh8
{[%clk 0:37:54]} Rf7 {[%clk 0:03:10]} Bd6 {[%clk 0:38:01]} h3 {[%clk 0:00:40]}
Re8 {[%clk 0:36:32]} Bd7 {[%clk 0:00:32]} Re5 {[%clk 0:36:53]} f4 {[%clk
0:27:17]} Rd5 {[%clk 1:05:13]} Be6 {[%clk 0:21:28]} Rd2 {[%clk 1:05:22]} f5
{[%clk 0:21:28]} h5 {[%clk 1:04:36]} Rd7 {[%clk 0:17:52]} h4 {[%clk 1:04:57]}
Bf7 {[%clk 0:17:47]} Kh7 {[%clk 0:57:51]} f6 {[%clk 0:17:44]} Bf4 {[%clk
0:56:31]} Bd5 {[%clk 0:17:48]}

[Variant "Standard"]
[Site "Europe Echecs"]

[Event "Open Cappelle-la-Grande"]
[Date "2026.02.22"]
[White "Lacanrus, David"]
[Black "Flom, Gabriel"]
[WhiteElo "2324"]
[BlackElo "2423"]
[Round "3.3.11"]
[Result "0-1"]
[TimeControl "40/5400+30:1800+30"]

e4 {[%clk 1:28:47]} c5 {[%clk 1:30:53]} Nf3 {[%clk 1:29:13]} Nc6 {[%clk
1:31:16]} Bb5 {[%clk 1:29:37]} e6 {[%clk 1:31:08]} Bxc6 {[%clk 1:30:02]} bxc6
{[%clk 1:31:33]} d3 {[%clk 1:30:25]} Bd6 {[%clk 1:31:37]} Nbd2 {[%clk 1:25:35]}
Bc7 {[%clk 1:30:41]} h4 {[%clk 1:15:14]} e5 {[%clk 1:30:38]} Nc4 {[%clk
1:14:36]} d6 {[%clk 1:27:13]} h5 {[%clk 1:13:41]} Nf6 {[%clk 1:12:43]} h6 {[%clk
1:12:14]} g6 {[%clk 1:13:10]} Bg5 {[%clk 1:08:12]} Qe7 {[%clk 1:13:39]} Bh4
{[%clk 1:05:04]} O-O {[%clk 0:35:12]} Qd2 {[%clk 1:03:29]} Qe6 {[%clk 0:33:45]}
Ng5 {[%clk 1:00:19]} Qe8 {[%clk 0:33:53]} f4 {[%clk 0:57:20]} exf4 {[%clk
0:30:34]} O-O-O {[%clk 0:46:41]} Nh5 {[%clk 0:30:54]} Bf2 {[%clk 0:41:44]} Bg4
{[%clk 0:29:36]} Rde1 {[%clk 0:40:35]} f6 {[%clk 0:29:58]} Nf3 {[%clk 0:35:29]}
g5 {[%clk 0:20:29]} d4 {[%clk 0:30:35]} Qf7 {[%clk 0:20:47]} Qc3 {[%clk
0:28:28]} d5 {[%clk 0:20:09]} Ncd2 {[%clk 0:22:22]} dxe4 {[%clk 0:17:20]} Nxe4
{[%clk 0:21:58]} Qxa2 {[%clk 0:15:56]} Nxc5 {[%clk 0:14:25]} Ng3 {[%clk
0:14:08]} Bxg3 {[%clk 0:11:24]} fxg3 {[%clk 0:14:34]} Nd3 {[%clk 0:11:43]} Bxf3
{[%clk 0:07:20]} gxf3 {[%clk 0:12:06]} Qa1+ {[%clk 0:05:15]} Kd2 {[%clk
0:12:29]} Qa5 {[%clk 0:05:41]} Re6 {[%clk 0:06:16]} Qxc3+ {[%clk 0:05:29]} Kxc3
{[%clk 0:06:24]} Kf7 {[%clk 0:05:03]} Rxc6 {[%clk 0:05:51]} Rac8 {[%clk
0:04:27]} Rc4 {[%clk 0:03:09]} Bf4 {[%clk 0:03:19]} Nxf4 {[%clk 0:02:02]} gxf4
{[%clk 0:03:48]} d5 {[%clk 0:01:13]} Rxc4+ {[%clk 0:04:11]} Kxc4 {[%clk
0:01:41]} Re8 {[%clk 0:04:32]} Kd4 {[%clk 0:01:37]} Re3 {[%clk 0:04:28]} Rf1
{[%clk 0:00:52]} Rxf3 {[%clk 0:04:21]} Ra1 {[%clk 0:00:59]} g2 {[%clk 0:04:09]}
Rxa7+ {[%clk 0:01:24]} Ke8 {[%clk 0:04:34]} Ra8+ {[%clk 0:01:25]} Kd7 {[%clk
0:04:59]} Ra7+ {[%clk 0:01:52]} Kc8 {[%clk 0:05:22]} Ra6 {[%clk 0:01:04]}

[Variant "Standard"]
[Site "Europe Echecs"]

[Event "Open Cappelle-la-Grande"]
[Date "2026.02.22"]
[White "Raja Rithvik R"]
[Black "Plaidit, Hugo"]
[WhiteElo "2535"]
[BlackElo "2223"]
[Round "3.3.12"]
[Result "1-0"]
[TimeControl "40/5400+30:1800+30"]

Nf3 {[%clk 1:30:53]} Nf6 {[%clk 1:30:47]} c4 {[%clk 1:31:15]} g6 {[%clk
1:31:06]} g3 {[%clk 1:30:26]} Bg7 {[%clk 1:31:28]} Bg2 {[%clk 1:30:51]} O-O
{[%clk 1:31:49]} d4 {[%clk 1:30:50]} d6 {[%clk 1:32:11]} Nc3 {[%clk 1:31:11]}
Bf5 {[%clk 1:31:08]} Nh4 {[%clk 1:29:42]} Bc8 {[%clk 1:31:31]} O-O {[%clk
1:30:01]} e5 {[%clk 1:30:55]} Nf3 {[%clk 1:30:13]} Nc6 {[%clk 1:30:56]} dxe5
{[%clk 1:29:53]} dxe5 {[%clk 1:31:13]} Bg5 {[%clk 1:30:17]} h6 {[%clk 1:30:13]}
Qxd8 {[%clk 1:27:24]} Rxd8 {[%clk 1:30:36]} Bxf6 {[%clk 1:27:49]} Bxf6 {[%clk
1:30:58]} Nd5 {[%clk 1:28:17]} Kg7 {[%clk 1:31:07]} Nxc7 {[%clk 1:28:39]} Rb8
{[%clk 1:31:31]} e4 {[%clk 1:28:52]} Be7 {[%clk 1:25:39]} Nd5 {[%clk 1:17:59]}
Bc5 {[%clk 1:23:03]} Ne1 {[%clk 1:14:53]} Bg4 {[%clk 1:11:28]} Nd3 {[%clk
1:13:55]} Bd4 {[%clk 1:11:43]} Rfe1 {[%clk 1:13:24]} a5 {[%clk 1:10:07]} Rac1
{[%clk 1:05:13]} Ra8 {[%clk 0:55:23]} Rc2 {[%clk 0:51:54]} Be6 {[%clk 0:48:00]}
b3 {[%clk 0:41:23]} Ra7 {[%clk 0:39:24]} a3 {[%clk 0:37:24]} h5 {[%clk 0:30:51]}
h4 {[%clk 0:35:15]} b6 {[%clk 0:30:08]} Kh2 {[%clk 0:28:39]} Rdd7 {[%clk
0:25:10]} Rb1 {[%clk 0:22:49]} Rd8 {[%clk 0:24:38]} Bh3 {[%clk 0:20:46]} Kf8
{[%clk 0:20:22]} f4 {[%clk 0:17:32]} Bxh3 {[%clk 0:13:03]} Kxh3 {[%clk 0:17:49]}
Re8 {[%clk 0:12:57]} Re2 {[%clk 0:16:12]} exf4 {[%clk 0:11:55]} gxf4 {[%clk
0:16:37]} f6 {[%clk 0:12:09]} Rbe1 {[%clk 0:12:57]} Nd8 {[%clk 0:09:08]} f5
{[%clk 0:10:50]} gxf5 {[%clk 0:08:14]} exf5 {[%clk 0:11:15]} Rxe2 {[%clk
0:08:37]} Rxe2 {[%clk 0:11:43]} Kf7 {[%clk 0:07:16]} N3f4 {[%clk 0:11:17]} a4
{[%clk 0:06:13]} b4 {[%clk 0:10:20]} Nc6 {[%clk 0:05:42]} Nxh5 {[%clk 0:05:28]}
Ne5 {[%clk 0:04:21]} Rg2 {[%clk 0:05:15]} Ra8 {[%clk 0:03:36]} Rg7+ {[%clk
0:03:40]} Kf8 {[%clk 0:04:04]} Ndxf6 {[%clk 0:04:01]} Rd8 {[%clk 0:03:58]} Nh7+
{[%clk 0:04:25]} Ke8 {[%clk 0:04:21]} N5f6# {[%clk 0:04:52]}

[Variant "Standard"]
[Site "Europe Echecs"]

[Event "Open Cappelle-la-Grande"]
[Date "2026.02.22"]
[White "Can, Emre"]
[Black "Mannion, Stephen R"]
[WhiteElo "2541"]
[BlackElo "2202"]
[Round "3.3.13"]
[Result "1-0"]
[TimeControl "40/5400+30:1800+30"]

e4 {[%clk 1:28:52]} e5 {[%clk 1:30:57]} Nf3 {[%clk 1:29:12]} Nc6 {[%clk
1:31:21]} Bc4 {[%clk 1:29:25]} Bc5 {[%clk 1:31:43]} d3 {[%clk 1:28:38]} Nf6
{[%clk 1:31:59]} Bg5 {[%clk 1:28:29]} h6 {[%clk 1:31:50]} Bh4 {[%clk 1:28:52]}
a6 {[%clk 1:26:28]} a4 {[%clk 1:27:32]} d6 {[%clk 1:23:42]} c3 {[%clk 1:26:39]}
Ba7 {[%clk 1:21:43]} Nbd2 {[%clk 1:26:46]} Qe7 {[%clk 1:10:38]} O-O {[%clk
1:25:03]} O-O {[%clk 1:08:43]} a5 {[%clk 1:19:18]} Be6 {[%clk 1:07:22]} Re1
{[%clk 1:14:30]} Bxc4 {[%clk 1:00:40]} Nxc4 {[%clk 1:14:51]} Qe6 {[%clk
1:01:04]} Qb3 {[%clk 1:11:12]} Rab8 {[%clk 1:00:07]} Rad1 {[%clk 1:10:55]} g5
{[%clk 0:48:41]} Bg3 {[%clk 1:11:12]} Nh5 {[%clk 0:49:04]} d4 {[%clk 1:03:41]}
Nxg3 {[%clk 0:49:16]} hxg3 {[%clk 1:03:48]} Qf6 {[%clk 0:45:41]} dxe5 {[%clk
1:01:25]} dxe5 {[%clk 0:44:17]} Qc2 {[%clk 0:56:21]} Qe6 {[%clk 0:39:20]} Rd5
{[%clk 0:51:49]} f6 {[%clk 0:39:26]} Qd3 {[%clk 0:47:25]} Rf7 {[%clk 0:33:23]}
Rd1 {[%clk 0:36:33]} Re8 {[%clk 0:31:54]} Nfd2 {[%clk 0:33:32]} f5 {[%clk
0:21:10]} exf5 {[%clk 0:33:48]} Qxf5 {[%clk 0:21:32]} Qxf5 {[%clk 0:33:25]} Rxf5
{[%clk 0:22:00]} Ne4 {[%clk 0:33:35]} Ref8 {[%clk 0:18:29]} R1d2 {[%clk
0:33:51]} g4 {[%clk 0:16:30]} b4 {[%clk 0:28:00]} h5 {[%clk 0:15:51]} Nb2 {[%clk
0:26:53]} b6 {[%clk 0:09:54]} axb6 {[%clk 0:26:08]} Bxb6 {[%clk 0:09:33]} Nc4
{[%clk 0:25:07]} Kg7 {[%clk 0:02:07]} Nxb6 {[%clk 0:23:49]} cxb6 {[%clk
0:02:35]} Rd6 {[%clk 0:24:08]}

[Variant "Standard"]
[Site "Europe Echecs"]